{"text_format":"1","workbook":"xlsx","n_sheets":11,"sheets":["Titelblatt","Erläuterungen zur Quali","Bewertung","Beurteilungsmassstab","Arbeitsprozess 1","Arbeitsprozess 3","Arbeitsprozess 4","Arbeitsprozess 5","Arbeitsprozess 6","Beurteilung","Berechnung"],"not_rendered":{"charts":0,"images":1,"macros":1,"external_links":0,"defined_names":11,"comments":0,"pivot_tables":0},"unopened":[],"bounds":{"document_bytes":16777216,"sheet_cells":100000,"rows_first":2000,"rows_last":500,"rows_between":2000,"halvings":0,"cell_chars":16384,"cell_head_chars":4096},"cells_cut":0,"cells_raw":0,"read":"whole","date_system":"1900"}

{"sheet":"Titelblatt","index":0,"n_rows":38,"n_cols":9,"rows_kept":38,"cut":false,"hidden":false,"merged":[[44,7,45,8],[7,4,7,8],[8,4,8,8],[11,5,11,8],[13,5,13,8],[15,5,15,8],[17,5,17,8],[19,5,19,8],[27,5,27,8],[30,5,31,8]]}
[]
[]
[]
[]
[]
[]
[]
[null,null,null,null,"Ausbildung zur dipl. Fachfrau | dipl. Fachmann Operationstechnik HF"]
[null,null,null,null,"Lernbereich Praxis"]
[]
[]
[null,null,null,null,"Qualifikation","1. Ausbildungsjahr | 1.Praktikum "]
[]
[null,null,null,null,"Name"]
[]
[null,null,null,null,"Vorname"]
[]
[null,null,null,null,"Kursnummer"]
[]
[null,null,null,null,"Institution"]
[]
[null,null,null,null,"Fachgebiete ","Gruppe","Fachgebiete","von (Datum)","bis ( Datum)"]
[null,null,null,null,null,1,"- Viszeralchirurgie\n- Gefässchirurgie\n- Gynäkologie\n- Urologie"]
[null,null,null,null,null,2,"- Traumatologie\n- Orthopädie"]
[null,null,null,null,null,3,"- Spezialbereich\n- Herzchirurgie\n- Thorxchirurgie\n- ORL\n- Neurochirurgie\n- Ophthalmologie\n- plastische Chirurgie\n- Kinderchirurgie"]
[]
[]
[null,null,null,null,"Anzahl Absenzen in Tagen"]
[]
[]
[null,null,null,null,"Hinweis","Vollständig ausgefülltes Qualifikationsformular in der Personalakte aufbewahren. Ist die Praktikumsqualifkation ungenügend, Fachgruppenleitung HF Operationstechnik einreichen. "]
[]
[]
[]
[]
[]
[null,null,null,null,"Quellen","Rahmenlehrplan Operationstechnik, Dez. 2010"]
[null,null,null,null,null,"Praktikumsqualifikation HF Operationstechnik, Careum Bildungszentrum"]

{"sheet":"Erläuterungen zur Quali","index":1,"n_rows":16,"n_cols":6,"rows_kept":16,"cut":false,"hidden":false,"merged":[[4,4,5,7],[15,4,46,7]]}
[null,null,null,null,"Arbeitsprozesse und Kompetenzen"]
[]
[]
[null,null,null,null,"Arbeitsprozesse"]
[null,null,null,null,"Die Arbeitsprozesse werden aus dem Arbeitsfeld und dem Kontext abgeleitet. Sie beschreiben, wie die zentralen beruflichen Aufgaben umgesetzt bzw. bewältigt werden."]
[]
[]
[null,null,null,null,"Arbeitsprozess 1","Zudientätigkeit"]
[null,null,null,null,"Arbeitsprozess 2","Instrumentiertätigkeit (im Praktikum 1 nicht bewertet)"]
[null,null,null,null,"Arbeitsprozess 3","Pflege und Betreuung von Patientinnen und Patienten im Operationsbereich"]
[null,null,null,null,"Arbeitsprozess 4","Organisation und Logistik"]
[null,null,null,null,"Arbeitsprozess 5","Interprofessionelle Zusammenarbeit und Kommunikation"]
[null,null,null,null,"Arbeitsprozess 6","Qualtätismanagement und Berufsentwicklung"]
[]
[null,null,null,null,"Kompetenz"]
[null,null,null,null,"Kompetenzen werden bezeichnet als „… die Fähigkeit zur Anwendung von Kenntnissen, Fähigkeiten und Know-how in gewohnten oder neuen Arbeitssituationen. Sie setzt sich aus Wissen (savoir), Fachkompetenz (savoir-faire) und Verhalten (savoir-être) zusammen. Sie wird durch die Zielorientiertheit, die Selbstständigkeit, das Ergreifen von Initiative, die Verantwortung, das Beziehungsumfeld, die verwendeten Mittel und das Anforderungsprofil...\" der Berufsfachperson definiert. Kompetentes Handeln, nicht die Kompetenz an sich, zeigt sich in den drei Bereichen des Denkens, Fühlens und Handelns einer Berufsfachperson und damit in den Dimensionen des beruflichen Handelns. Authentische und multiple Lernsituationen fördern den Erwerb der beruflichen Kompetenzen. Zusätzlich bedarf es der Bewertung des eigenen Handelns und Denkens, das mit Selbst- und Fremdevaluation und mittels Reflexion entwickelt und gefördert werden kann. \n\nDie Beschreibung des kompetenten Handelns in Form eines Handlungsprozesses wird in fol-genden vier Schritten dargestellt: Informieren, Planen, Realisieren, Evaluieren (IPRE).\n\nHandlungsmodell (IPRE-Modell)\nDas Handlungsmodell erlaubt eine strukturierte Beschreibung des kompetenten Handelns und wird in vier Schritte gegliedert:\nInformieren: Informationsaufnahme im Zusammehang mit der Situation\nPlanen: Planugn zur Vorbereitung des Handelns, Auswahl von Alternativen oder Vatianten\nRealisieren: Auführung, Umsetzung der Handlungsvorbereitung\nEvaluieren: Kontrolle der Handlung oder der Wirkung\n\nEine Kompetenz ist vorhanden, wenn die Auszubildende / der Auzubildene in der Lage ist:\n- Informationen zu deuten und zu erfassen\n- Mittels Informationen Entscheidungen zu treffen und entsprechende Massnahmen zu definieren\n- Massnahmen durchzuführen\n- die Wirkung des Handeln zu überpüfen\n\nDie Ausführungen dienen zum besseren Verständnis der definierten Kompetenz und wurden unverändert dem Rahmenlehrplan entnommen. Sie sind in der Taxonomie nicht auf die einzelnen Ausbildungsstufen heruntergebrochen.\n"]

{"sheet":"Bewertung","index":2,"n_rows":23,"n_cols":8,"rows_kept":23,"cut":false,"hidden":false,"merged":[[22,4,23,7],[3,4,7,7],[16,4,18,7],[19,4,21,7],[26,4,27,7]]}
[null,null,null,null,"Bewertung der Kompetenzen"]
[]
[]
[null,null,null,null,"Es werden zur Bewertung der Kompetenzen die Qualitätskriterien der Arbeitsprozesse 1,3,4,5 bis 6 eingeschätzt. Der Arbeitsprozess 2 wird im 1. Praktikum nicht bewertet. Das ist eine Entscheidung aller ABV Operationstechnik HF und des Bildungsanbieters.\n\nFür die Bewertung der einzelnen Kompetenzen stehen sechs Stufen (Notenwerte 6 - < 4) zur Verfügung. Die 6-er Skalierung entspricht der ECTS-Notensystematik (A-F), vergl. nachfolgende Tabelle. "]
[]
[]
[]
[]
[null,null,null,null,"ECTS-Note / Punktewert","Definition","Notenwert","Qualifkikation der Praktika"]
[null,null,null,null,"A","hervorragend",6,"Kompetenzen erreicht"]
[null,null,null,null,"B","sehr gut",5.5,"Kompetenzen erreicht"]
[null,null,null,null,"C","gut",5,"Kompetenzen erreicht"]
[null,null,null,null,"D","befriedigend",4.5,"Kompetenzen erreicht"]
[null,null,null,null,"E","genügend (ausreichend)",4,"Kompetenzen erreicht"]
[null,null,null,null,"F","nicht bestanden","< 4","Kompetenzen nicht erreicht"]
[]
[null,null,null,null,"Eine genügende Leistung entspricht der ECTS-Note 4 = E."]
[]
[]
[null,null,null,null,"Bewertungsprozess\nDie vier IPRE Kriterien sind als Hilfsmittel zu betrachten. Sie gewährleisten eine tätigkeitsübergreifende Bewertung auf HF Stufe. Die beurteilende Person bewertet jede Handlungskompetenz mit Hilfe der vier IPRE Kriterien. \nDie IPRE Kriterien werden im Vergleich zu den Handlungskompetenzen nicht in die Endberechnung einbezogen. Es wird empfohlen, die IPRE Kriterien zu bewerten, um eine aussagekräftige Bewertung der Handlungskompetenzen zu erlangen. Die IPRE Kriterien bilden einen Entwicklungsprozess während der betrieblichen Praxis ab und können auch ungenügend ausfallen. "]
[]
[]
[null,null,null,null,"Bewertungsmassstab\nDie qualitative Beschreibung des Leistungsniveaus der einzelnen ECTS Notenwerte ist der nachfolgenden Seite zu entnehmen."]

{"sheet":"Beurteilungsmassstab","index":3,"n_rows":13,"n_cols":7,"rows_kept":13,"cut":false,"hidden":false,"merged":[[0,3,0,5]]}
[null,null,null,"Beurteilungsmassstab"]
[null,null,null,"ECTS-Note / Notenwert","Definition","Bewertungsqualität"]
[null,null,null,"A = 6","Hervorragend","Die / der Auszubildende:\n·        zeigt eine ausgezeichnete Leistung ohne Fehler\n·        verhält sich gegenüber Anforderungen im hohen Mass ausgeglichen und professionell \n·        passt Prinzipien und betriebliche Vorgaben über die Situation hinweg exzellent an\n·        verhält sich in (rasch) verändernden Situationen äusserst flexibel und professionell und kann das\n         Handeln adaptieren und begründen\n·        verhält sich in (rasch) verändernden Situationen äusserst flexibel und professionell und kann das\n         Handeln adaptieren und begründen\n·        überzeugt im Hohen Mass im selbständig Denken und Handeln\n·        argumentiert das Handeln in hohem Mass und bezieht die Arbeitsprozesse mit ein\n·        sucht sich in hohem Mass Lernsituationen und deklariert den Wissenserwerb (Lernfortschritt bewegt\n         sich auf überdurchschnittlichem Niveau)"," "]
[null,null,null,"B = 5.5","Sehr gut","Die / der Auszubildende:\n·        zeigt eine sehr gute Leistung mit kleinen unbedeutsamen Fehlern\n·        verhält sich gegenüber Anforderungen sehr ausgeglichen und professionell \n·        passt Prinzipien und betriebliche Vorgaben sehr gut an\n·        verhält sich in (rasch) verändernden Situationen flexibel und professionell und kann das Handeln\n         adaptieren und begründen\n·        überzeugt mit sehr selbständigem Denken und Handeln\n·        argumentiert das Handeln sehr gut und bezieht die Arbeitsprozesse mit ein\n·        sucht viele Lernsituationen und deklariert den Wissenserwerb (Lernfortschritt bewegt sich auf sehr\n         gutem Niveau)"]
[null,null,null,{"$f":"D2","v":"ECTS-Note / Notenwert"},{"$f":"E2","v":"Definition"},{"$f":"F2","v":"Bewertungsqualität"}]
[null,null,null,"C = 5","Gut","Die / der Auszubildende:\n·        zeigt eine gute Leistung mit geringen Fehlern und Lücken \n·        verhält sich gegenüber Anforderungen ausgeglichen und professionell \n·        passt Prinzipien und betriebliche Vorgaben gut an\n·        verhält sich in (rasch) verändernden Situationen in gutem Mass flexibel und professionell und kann \n         das Handeln adaptieren und begründen\n·        überzeugt mit solidem selbständigem Denken und Handeln\n·        argumentiert das Handeln gut und bezieht die Arbeitsprozesse mit ein\n·        sucht Lernsituationen und deklariert den Wissenserwerb (Lernfortschritt bewegt sich auf gutem\n         Niveau)"]
[null,null,null,"D = 4.5","Befriedigend","Die / der Auszubildende:\n·        zeigt Leistungen die teilweise mit Fehlern und Lücken behaftet sind\n·        verhält sich gegenüber Anforderungen mit Schwankungen \n·        setzt Prinzipien und betrieblichen Vorgaben im wesentlichen Belangen / Bereichen um\n·        reagiert auf (rasch) verändernden Situationen in der Regel angemessen und findet sich mit \n         Hilfestellung zurecht\n·        zeigt im wesentlichen Belangen / Bereichen ein selbständiges Denken und Handeln\n·        argumentiert das Handeln in wesentlichen Belangen / Bereichen alleine oder mit Hilfestellung und\n         bezieht die Arbeitsprozesse mit ein\n·        benötigt beim Erkennen von Lernsituationen zum Teil Hilfestellung und deklariert den Wissenserwerb\n         zum Teil mit Hilfestellung (Lernfortschritt ist im Wesentlichen erkennbar)\n·        benötigt beim Erkennen von Lernsituationen zum Teil Hilfestellung und deklariert den Wissenserwerb\n         zum Teil mit Hilfestellung (Lernfortschritt ist im Wesentlichen erkennbar)"]
[null,null,null,{"$f":"D2","v":"ECTS-Note / Notenwert"},{"$f":"E2","v":"Definition"},{"$f":"F2","v":"Bewertungsqualität"}]
[null,null,null,"E = 4","Genügend \n(ausreichend)","Die / der Auszubildende:\n·        zeigt Leistungen die knapp erfüllt sind, die den Klienten / die Klientin nicht gefährden\n·        verhält sich gegenüber Anforderungen mit Fehlern und Lücken, die den Klienten / die Klientin nicht\n         gefährden\n·        setzt Prinzipien und betriebliche Vorgaben im wesentlichen Belangen / Bereichen knapp um\n·        reagiert auf (rasch) verändernde Situationen mit Hilfestellung in wesendlichen Belangen / Bereichen\n         knapp genügend, die den Klienten / die Klientin nicht gefährden\n·        zeigt in wesentlichen Belangen / Bereichen ein knapp erreichtes/selbständiges Denken und Handeln\n·        argumentiert das Handeln in wesendlichen Belangen / Bereichen mit Hilfestellung knapp und bezieht\n         die Arbeitsprozesse reduziert mit ein\n·        benötigt beim Erkennen von Lernsituationen Hilfestellung und deklariert den Wissenserwerb knapp\n         und Hilfestellung (Lernfortschritt ist knapp erkennbar)"]
[null,null,null,"F = < 4 ","Nicht bestanden","Die / der Auszubildende:\n·        zeigt Leistungen, die nicht den Anforderungen entsprechen, der Klient / die Klientin ist gefährdet\n·        verhält sich gegenüber Anforderungen mit deutlichen Fehlern und Lücken in wesentlichen Belangen /\n         Bereichen, der Klient / die Klientin ist gefährdet\n·        kann Prinzipien und betriebliche Vorgaben nicht gemäss Erwartungen und Ausbildungsstand erfüllen\n·        kann in (rasch) verändernden Situationen auch mit Hilfestellung nicht angemessen und adäquat\n         reagieren, der Klient / die Klientin ist gefährdet\n·        zeigt im Denken und Handeln nicht die Performance des Ausbildungsstandes, erkennt die\n         Zusammenhänge nicht\n·        argumentiert nicht gemäss Anforderungen und Ausbildungsstand, der Einbezug der Arbeitsprozesse \n         ist nicht möglich\n·        erkennt Lernsituationen nicht, der Wissenserwerb entspricht nicht dem Ausbildungsstand, es sind\n         keine Lernfortschritte erkennbar\n·        benötig Hilfestellung, Aufsicht und Kontrolle, keine Lernfortschritte erkennbar"]
[]
[]
[null,null,null,null,null," "]

{"sheet":"Arbeitsprozess 1","index":4,"n_rows":36,"n_cols":12,"rows_kept":36,"cut":false,"hidden":false,"merged":[[0,4,0,11],[1,4,1,11],[35,4,35,5],[34,4,34,11],[26,4,27,5],[26,6,26,11],[3,4,7,11],[8,4,9,5],[8,6,8,11],[18,4,19,5],[18,6,18,11],[35,8,35,11]]}
[null,null,null,null,"Arbeitsprozess 1"]
[null,null,null,null,"Zudientätitgkeit"]
[]
[null,null,null,null,"Der Arbeitsprozess beinhaltet alle unsterilen Tätigkeiten im prä-, intra- und postoperativen Bereich. Die dipl. Fachfrau / der dipl. Fachmann Operationstechnik HF reicht das Sterilgut an und bedient sämtliche technische Apparaturen, Geräte und Einrichtungen. Des Weiteren gewährleistet sie/er eine situationsbezogene Planung, Vorbereitung und Ausführung, indem sie/er ihre/seine Handlngen interdiziplinär und interprofessionell koodiniert. \n\n\n\n"]
[]
[]
[]
[]
[null,null,null,null,"Kompetenz 1.1\n Operationssituation überblicken und a- /antiseptisch Handeln",null,"Notenwert"]
[null,null,null,null,null,null,6,5.5,5,4.5,4,"< 4"]
[null,null,null,null,"1.1.1","Die/der Auszubildende gewährleistet beim Zudienen einen fachgerechten Umgang mit Sterilgut.\nSie handelt nach den a- /antiseptischen Prinzipien.\n"]
[null,null,null,null,"1.1.2","Sie/er stellt das periopertiv notwendige Material für kleinere und mittlere Eingriffe bereit."]
[null,null,null,null,"1.1.3","Sie/er erkennt potenzielle Risiken und holt bei Bedarf \nUnterstützung."]
[null,null,null,null,null,"Die/der Auszubildende:"]
[null,null,null,null,"I","Informiert sich über den Eingriff, die benötigten Materialien, den Ablauf und das Vorgehen im interprofessionellen Team."]
[null,null,null,null,"P","Wählt die für den Eingriff benötigten Materialien aus, entscheidet über Reservematerialien und plant zusammen mit der/dem Instrumentierenden das notwendige Prozedere bei der Operation."]
[null,null,null,null,"R","Kontrolliert das Sterilgut und reicht es fachgerecht an. Führt im Rahmen der Prävention zum Eigen-, Gesundheits- und Umweltschutz die geltenden aseptischen und antiseptischen Massnahmen durch. Überwacht, kontrolliert und korrigiert die Durchführung der aseptischen und antiseptischen Handlungen aller Personen im Operationsbereich.  "]
[null,null,null,null,"E","Überprüft Abläufe während der Operation ständig, reflektiert ihre Handlungsweise und kommuniziert diese."]
[null,null,null,null,"Kompetenz 1.2\nUmgang mit medizintechnischen Geräten und Einrichtungen",null,"Notenwert"]
[null,null,null,null,null,null,6,5.5,5,4.5,4,"< 4"]
[null,null,null,null,"1.2.1","Die/der Auszubildende handhabt und bedient bei standardisierten Eingriffen medizintechnische Geräte und Einrichtungen fachgerecht (unter Berücksichtigung bestehender gesetzlicher Vorgaben und Anleitungen der Hersteller).\nSie / er ist im Stande die Fehlerbehebung selbständig durchzuführen oder einzuleiten."]
[null,null,null,null,null,"Die/der Auszubildende:"]
[null,null,null,null,"I","Informiert sich über Anwendung und Einsatz der medizintechnischen Geräte und Einrichtungen, die für den spezifischen Eingriff benötigt werden. Informiert sich über Änderungen von Richtlinien und Vorschriften und schätzt die sich daraus ergebenden Konsequenzen ein."]
[null,null,null,null,"P","Plant und koordiniert den Einsatz der medizintechnischen Geräte und Einrichtungen."]
[null,null,null,null,"R","Setzt medizintechnische Geräte effizient und sicher ein, bereitet diese fachgerecht auf und nutzt Einrichtungen situationsgerecht. Kontrolliert medizintechnische Geräte auf ihre Funktion und koordiniert qualitätssichernde Massnahmen. Erkennt technische Probleme und behebt sie; leitet bei technischen Defekten je nach Bedarf Wartungsmassnahmen ein. Bedient in delegierter Verantwortung einer sachkundigen Fachärztin oder eines sachkundigen Facharztes mobile Bildverstärker."]
[null,null,null,null,"E","Überprüft laufend und abschliessend den vorschriftsgemässen und adäquaten Einsatz der technischen Apparaturen, Geräte und Einrichtungen und kommuniziert diese."]
[null,null,null,null,"Kompetenz 1.3\nPlanung und Koodination der Abläufe",null,"Notenwert"]
[null,null,null,null,null,null,6,5.5,5,4.5,4,"< 4"]
[null,null,null,null,"1.3.1","Die/der Auszubildende beteiligt sich an den Handlungsprozessen im zugewiesenen Operationssaal\nSie handelt wirtschaftlich und effizient.\n"]
[null,null,null,null,null,"Die/der Auszubildende"]
[null,null,null,null,"I","Verschafft sich über die aktuelle Situation einen Überblick und stellt den Koordinationsbedarf im interprofessionellen Team fest. "]
[null,null,null,null,"P","Entscheidet in der aktuellen Situation über Reihenfolge und Übereinstimmung der Handlungsabläufe innerhalb der interprofessionellen Zusammenarbeit."]
[null,null,null,null,"R","Koordiniert und überwacht die Handlungsabläufe innerhalb der interprofessionellen Zusammenarbeit."]
[null,null,null,null,"E","Überprüft und reflektiert Handlungsprozesse und kommuniziert diese."]
[null,null,null,null,"Bemerkung Kompetenz 1.1 / 1.2 / 1.3"]
[null,null,null,null,"Total Arbeitsprozess 1, Zudientätigkeit",null,null,null,{"$f":"Berechnung!I21","v":"nicht vollständig"}]

{"sheet":"Arbeitsprozess 3","index":5,"n_rows":26,"n_cols":12,"rows_kept":26,"cut":false,"hidden":false,"merged":[[0,4,0,11],[1,4,1,11],[7,4,8,5],[7,6,7,11],[3,4,6,11],[24,4,24,11],[16,4,17,5],[16,6,16,11],[25,8,25,11],[25,4,25,7]]}
[null,null,null,null,"Arbeitsprozess 3"]
[null,null,null,null,"Pflege und Betreuung der Patientinnen und Patienten im Operationsbereich"]
[]
[null,null,null,null,"Der Arbeitsprozess beinhaltet die Übernahme, Betreuung und Pflege der Patientinnen und Patienten im Operationsbereich vor, während und unmittelbar nach dem Eingriff. Die dipl. Fachfrau / der dipl. Fachmann Operationstechnik HF ist in diesem Zeitraum für die operationsspezifischen pflegerischen Massnahmen und je nach Situation die stellvertretende Übernahme von Lebensaktivitäten verantwortlich. Sie/er betreut und begleitet die Patientinnen und Patienten im Operationsbereich im Rahmen ihrer/seiner Zuständigkeit. Dabei berücksichtigt sie/er insbesondere soziokulturelle, altesspezifische und geschlechterbezogene Aspekte. \n\n\n\n"]
[]
[]
[]
[null,null,null,null,"Kompetenz 3.1\nPflege und Betreuung der Patientinnen und Patienten",null,"Notenwert"]
[null,null,null,null,null,null,6,5.5,5,4.5,4,"< 4"]
[null,null,null,null,"3.1.1","Die/der Auszubildende beobachtet gezielt, identifiziert Wünsche und Bedürfnisse des Patienten/der Patientin und handelt situationsgerecht bzw. holt sich Unterstützung.\n\n\n"]
[null,null,null,null,"3.1.2","Sie/er beachtet rechtliche Normen.\nSie/er identifiziert ethische Grundsätze und handelt danch."]
[null,null,null,null,null,"Die/der Auszubildende"]
[null,null,null,null,"I","Informiert sich über den bevorstehenden Eingriff und erfasst die für die Sicherheit und das Wohlbefinden der Patientinnen und Patienten relevanten Daten. Erfasst die psychischen und physischen Bedürfnisse und Ressourcen der Patientinnen und Patienten."]
[null,null,null,null,"P","Beurteilt die Situation und entscheidet über die operationsspezifischen, pflegerischen Massnahmen. Beurteilt im Rahmen ihrer/seiner Verantwortung die Situation bei beeinträchtigten Lebensaktivitäten. \nPlant im Rahmen ihres/seines Verantwortungsbereichs die situations- und fachgerechte Lagerung."]
[null,null,null,null,"R","Führt pflegerische Massnahmen aus oder delegiert diese und überwacht deren fachgerechte Durchführung. Überwacht im Rahmen ihres/seines Verantwortungsbereichs die situations- und fachgerechte Lagerung. Setzt verschiedene Methoden ziel- und situationsgerecht ein."]
[null,null,null,null,"E","Überprüft den Prozess und die Wirksamkeit der Interventionen. Erkennt frühzeitig sich verändernde Patientensituationen und passt die Interventionen an. Kommuniziert die Wirksamkeit der Interventionen."]
[null,null,null,null,"Kompetenz 3.2\nBeziehungsgestaltung mit den Patientinnen und Patienten",null,"Notenwert"]
[null,null,null,null,null,null,6,5.5,5,4.5,4,"< 4"]
[null,null,null,null,"3.2.1","Die /der Auszubildende erkennt Möglichkeiten der Beziehungsgestaltung und setzt diese situationsgerecht um.\nSie/er gestaltet einen respektvollen Umgang mit Nähe und Distanz.\n"]
[null,null,null,null,null,"Die/der Auszubildende"]
[null,null,null,null,"I","Informiert sich über die Situation der Patientinnen und Patienten. Erfasst und klärt die Bedürfnisse der Patientinnen und Patienten."]
[null,null,null,null,"P","Wählt in der Gestaltung der Beziehung und Kommunikation eine Vorgehensweise, die den Patientinnen und Patienten gerecht wird. Beachtet dabei Einflussfaktoren, welche die Kommunikation erschweren können."]
[null,null,null,null,"R","Gestaltet die Kommunikation unter Wahrung der Autonomie der Patientinnen und Patienten und unter Berücksichtigung ihrer Bedürfnisse."]
[null,null,null,null,"E","Überprüft die Wirksamkeit der Kommunikation und der Beziehungsgestaltung anhand von Reaktionen und Rückmeldungen der Patientinnen und Patienten. Reflektiert ihre Vorgehensweise anhand von Modellen und Prinzipien sowie der rechtlichen Vorgaben. Kommuniziert die Erkenntnisse."]
[null,null,null,null,"Bemerkung Kompetenz 3.1 /3.2"]
[null,null,null,null,"Total Arbeitsprozess 3, Pflege und Betreuung Patientinnen und Patienten",null,null,null,{"$f":"Berechnung!I33","v":"nicht vollständig"}]

{"sheet":"Arbeitsprozess 4","index":6,"n_rows":34,"n_cols":12,"rows_kept":34,"cut":false,"hidden":false,"merged":[[0,4,0,11],[1,4,1,11],[3,4,6,11],[15,4,16,5],[15,6,15,11],[7,4,8,5],[7,6,7,11],[32,4,32,11],[23,4,24,5],[23,6,23,11],[33,4,33,5],[33,8,33,11]]}
[null,null,null,null,"Arbeitsprozess 4"]
[null,null,null,null,"Organisation und Logistik"]
[]
[null,null,null,null,"Der Arbeitsprozess beinhaltet die Koordinations-, Delegations- und Überwachungsaufgaben im Operationsbereich. Die dipl. Fachfrau / der dipl. Fachmann Operationstechnik HF orientiert sich an betrieblichen Leitlinien der Institution und ist verantwortlich für die fachgerechte Aufbereitung, Bereitstellung und Wartung der Medizinalprodukte, Materialien, Geräte, Apparate und des Instrumentariums für den Operationsbereich. Sie/er setzt sich für die Optimierung von Effizienz, Wirtschaftlichkeit und Nachhaltigkeit ein.\n\n\n\n"]
[]
[]
[]
[null,null,null,null,"Kompetenz 4.1\nOrganisation ",null,"Notenwert"]
[null,null,null,null,null,null,6,5.5,5,4.5,4,"< 4"]
[null,null,null,null,"4.1.1","Die/der Auszubildende erkennt ihre/seine Aufgaben in der Organisation des Operationsbereichs.\nDie/die Auszubildende berücksichtigt die betrieblichen und organisatorischen Vorgaben und Leitlinien in ihrem/seinem Arbeitsbereich. \n\n"]
[null,null,null,null,null,"Die/der Auszubildende"]
[null,null,null,null,"I","Informiert sich über das aktuelle Operationsprogramm. Erfasst die Komplexität der Situationen. Verschafft sich in der aktuellen Situation einen Überblick über das interprofessionelle Personal. "]
[null,null,null,null,"P","Plant die eigene Arbeit im interprofessionellen Team unter Berücksichtigung von sich rasch ändernden Situationen. \n"]
[null,null,null,null,"R","Koordiniert während der Eingriffe den Einsatz des Personals sowie Einrichtungen und medizintechnische Geräte situationsgerecht. "]
[null,null,null,null,"E","Reflektiert den Einsatz des Personals, Einrichtungen, medizintechnischer Geräte, Arbeitsprozesse und die Wirtschaftlichkeitsaspekte. \nSie/er kommuniziert diese.  "]
[null,null,null,null,"Kompetenz 4.2\nLogistik",null,"Notenwert"]
[null,null,null,null,null,null,6,5.5,5,4.5,4,"< 4"]
[null,null,null,null,"4.2.1","Die/der Auszubildende geht sorgfältig mit Medizinalprodukten, Materialien, medizintechnischen Geräten und Instrumentarium in ihrem/seinem Arbeitsfeld um. Sie holt sich bei Bedarf Unterstützung.\nSie/er kennt den Aufbereitungsprozess.\n"]
[null,null,null,null,null,"Die/der Auszubildende"]
[null,null,null,null,"I","Erfasst den Bedarf und den Verbrauch an Medizinalprodukte, Materialien, medizintechnischen Geräte und Instrumenten. "]
[null,null,null,null,"P","Plant den Einsatz und den Verbrauch verschiedener Medizinalprodukte, Materialien, medizintechnischen Geräte sowie Instrumente und stellt deren Verfügbarkeit sicher."]
[null,null,null,null,"R","Setzt die Medizinalprodukte, Materialien, medizintechnischen Geräte und Instrumente effizient und wirtschaftlich ein."]
[null,null,null,null,"E","Überprüft die Prozesse im Hinblick auf Wirtschaftlichkeit und Effizienz und kommuniziert diese."]
[null,null,null,null,"Kompetenz 4.3\nDokumetation ",null,"Notenwert"]
[null,null,null,null,null,null,6,5.5,5,4.5,4,"< 4"]
[null,null,null,null,"4.3.1","Die/der Auszubildende erstellt die Dokumentation ihrer/seiner Handlungen sicher. Sie/er holt sich bei Bedarf Unterstützung. \n"]
[null,null,null,null,"4.3.2","Sie/er informiert sich über vorhandene betriebliche Checklisten, Handlungsschemen und Standards und berücksichtigt diese in ihrem Handeln."]
[null,null,null,null,null,"Die/der Auszubildende"]
[null,null,null,null,"I","Informiert sich über die vorliegenden Dokumentationsabläufe und macht sich mit ihnen  vertraut. Informiert sich über betriebliche Checklisten, Handlungsschemen und Standards. "]
[null,null,null,null,"P","Wählt entsprechend der operativen Eingriffe die geeignete Dokumentation und stellt deren Vollständigkeit sicher. Plant anhand von Checklisten, Handlungsschemen und Standards bevorstehende Eingriffe."]
[null,null,null,null,"R","Führt die Patientendokumentation gemäss betrieblichen Vorgaben sorgfältig und vollständig. Meldet Änderungen von vorhandene Checklisten, Handlungsschemen und Standards fortlaufend. "]
[null,null,null,null,"E","Überprüft ihre/seine Dokumentation auf Vollständigkeit und reflektiert Sinn und Zweck. Überprüft die Aktualität der vorhandenen Checklisten, Handlungsschemen und Standards, reflektiert Arbeitsprozesse und kommuniziert die Erkenntnisse."]
[null,null,null,null,"Bemerkung Kompetenz 4.1 / 4.2 / 4.3"]
[null,null,null,null,"Total Arbeitsprozess 4, Organisation und Logistik",null,null,null,{"$f":"Berechnung!I50","v":"nicht vollständig"}]

{"sheet":"Arbeitsprozess 5","index":7,"n_rows":27,"n_cols":12,"rows_kept":27,"cut":false,"hidden":false,"merged":[[0,4,0,11],[1,4,1,11],[26,4,26,7],[8,4,9,5],[8,6,8,11],[3,4,7,11],[25,4,25,11],[16,4,17,5],[16,6,16,11],[26,8,26,11]]}
[null,null,null,null,"Arbeitsprozess 5"]
[null,null,null,null,"Interprofessionelle Zusammenarbeit und Kommunikation"]
[]
[null,null,null,null,"Der Arbeitsprozess beinhaltet die Zusammenarbeit in interprofessionellen und interdisziplinären Arbeitsteams auf engstem Raum. Die dipl. Fachfrau / der dipl. Fachmann Operationstechnik HF sorgt für eine effiziente, reibungslose und zielgerichtete Zusammenarbeit aller an der Operation beteiligten Personen mit unterschiedlichen Rollen, Aufgaben und Kompetenzen. Sie/er bewegt sich professionell im Spannungsfeld zwischen Abhängigkeit und Eigenständigkeit sowie zwischen Nähe und Distanz. Sie/er kommuniziert zur Erreichung eines optimalen Operationsergebnisses zielgerichtet, konstruktiv und wertschätzend auch in konflikanfälligen und in sich schnell ändernden Arbeitssituationen.\n\n\n\n"]
[]
[]
[]
[]
[null,null,null,null,"Kompetenz 5.1\nInterprofessionelle Zusammenarbeit",null,"Notenwert"]
[null,null,null,null,null,null,6,5.5,5,4.5,4,"< 4"]
[null,null,null,null,"5.1.1","Die/der Auszubildende unterscheidet zwischen den verschiedenen Rollen, Funktionen und Verantwortungsbereichen aller an einem Eingriff beteiligten Fachpersonen und bringt sich ein. Sie/er wendet sich bei Bedarf an die zuständigen Personen.\n"]
[null,null,null,null,null,"Die/der Auszubildende"]
[null,null,null,null,"I","Informiert sich über die Zusammensetzung des Arbeitsteams und die verschiedenen Rollen, Funktionen, Aufgaben und Kompetenzen der beteiligten Personen. Klärt den Koordinationsbedarf beim bevorstehenden operativen Eingriff. Nimmt mögliche, kritische Handlungen wahr und erfasst vorhandene Ressourcen."]
[null,null,null,null,"P","Plant die Koordination der Handlungsprozesse und setzt Prioritäten."]
[null,null,null,null,"R","Koordiniert das eigene Handeln mit dem Handeln des interprofessionellen Teams. Handelt gemäss ihrer/seiner eigenen Rolle und Funktion eigenständig oder in Delegation.  "]
[null,null,null,null,"E","Beurteilt die Koordinationsmassnahmen und reflektiert die Zusammenarbeit. Sie/er kann diese kommunizieren. "]
[null,null,null,null,"Kompetenz 5.2\nKommunikation",null,"Notenwert"]
[null,null,null,null,null,null,6,5.5,5,4.5,4,"< 4"]
[null,null,null,null,"5.2.1","Die /der Auszubildende kommuniziert zielgerichtet und adressatengerecht unter Anwendung einer korrekten Fachsprache."]
[null,null,null,null,"5.2.2","Sie erfasst und reflektiert konfliktanfällige und sich rasch verändernde Arbeitssituationen."]
[null,null,null,null,null,"Die/der Auszubildende"]
[null,null,null,null,"I","Informiert sich über die Teamkonstellation und Arbeitssituation. Erfasst konfliktanfällige Situationen sowie sich verändernde Arbeitssituationen."]
[null,null,null,null,"P","Entscheidet sich für Strategien, die eine adäquate Kommunikation sicherstellen."]
[null,null,null,null,"R","Kommuniziert unter Anwendung geeigneter Techniken und Strategien. Übermittelt relevante Daten präzis und zeitgerecht."]
[null,null,null,null,"E","Überprüft die Wirksamkeit der eingesetzten Techniken und Strategien. Reflektiert die Gruppendynamik und kommuniziert diese. "]
[null,null,null,null,"Bemerkung Kompetenz 5.1 / 5.2 "]
[null,null,null,null,"Total Arbeitsprozess 5, Interprofessionelle Zusammenarbeit und Kommunikation",null,null,null,{"$f":"Berechnung!I62","v":"nicht vollständig"}]

{"sheet":"Arbeitsprozess 6","index":8,"n_rows":34,"n_cols":12,"rows_kept":34,"cut":false,"hidden":false,"merged":[[3,4,7,11],[16,4,17,5],[16,6,16,11],[8,4,9,5],[8,6,8,11],[32,4,32,11],[24,4,25,5],[24,6,24,11],[33,4,33,7],[33,8,33,11]]}
[null,null,null,null,"Arbeitsprozess 6"]
[null,null,null,null,"Qualitätsmanagement und Berufsentwicklung"]
[]
[null,null,null,null,"Die dipl. Fachfrau / der dipl. Fachmann Operationstechnik HF beteiligt sich an der Erarbeitung von Behandlungs- und Qualitätsmanagement-Konzepten. Sie/er setzt sich mit neuen Entwicklungen in der Chirurgie auseinander. Sie/er ist verantwortlich für die eigene berufliche Weiterbildung. Sie/er beteiligt sich an der Begleitung von Studierenden und Mitarbeitenden. Sie/er vertritt die Anliegen des Berufs in der Öffentlichkeit und wirkt bei der Weiterentwicklung des Berufes mit.\n\n\n\n"]
[]
[]
[]
[]
[null,null,null,null,"Kompetenz 6.1\nQualitäts- und Riskmanagment ",null,"Notenwert"]
[null,null,null,null,null,null,6,5.5,5,4.5,4,"< 4"]
[null,null,null,null,"6.1.1","Die/der Auszubildende erkennt potentielle Risiken, beachtet die Sicherheitsvorschriften und betriebsspezifischen Qualitätsinstrumente.\n"]
[null,null,null,null,null,"Die/der Auszubildende"]
[null,null,null,null,"I","Informiert sich über die relevanten Standards für die spezifische Arbeitssituation. Identifiziert Risiken und Gefahren für sich und alle Beteiligten."]
[null,null,null,null,"P","Entscheidet sich für adäquate Massnahmen und allenfalls für zusätzliche Fachpersonen."]
[null,null,null,null,"R","Trifft die erforderlichen Massnahmen. Dokumentiert und meldet Fehler oder kritische Ereignisse weiter. Macht Vorschläge zur Qualitätsverbesserung und Fehlerquellen. "]
[null,null,null,null,"E","Kontrolliert und dokumentiert die Wirksamkeit der Massnahmen und kommuniziert diese. "]
[null,null,null,null,"Kompetenz 6.2\nBerufsbezogenes Selbstmanagment",null,"Notenwert"]
[null,null,null,null,null,null,6,5.5,5,4.5,4,"< 4"]
[null,null,null,null,"6.2.1","Die/der Auszubildende erklärt und begründet ihr/sein Handeln aufgrund von adäquatem Fachwissen.\nSie/er holt Feedback und  schätzt die eigenen Leistungen ein. Sie/er leitet den Lernbedarf ab und gestaltet den Lernprozess aktiv mit.\n"]
[null,null,null,null,null,"Die/der Auszubildende"]
[null,null,null,null,"I","Schreibt regelmässig Reflexionen und vergleicht den eigenen Wissenstand mit dem geforderten Ausbildungsniveau des Berufes. Informiert sich über die Entwicklung ihres/seines Berufes. "]
[null,null,null,null,"P","Plant mögliche Optionen für die berufliche Weiterentwicklung. Wählt geeignete Lernangebote aus. "]
[null,null,null,null,"R","Setzt und prüft Lernstrategien für die berufliche Weiterbildung. \nBefasst sich mit Fachliteratur zu Forschungsarbeiten. \nZeigt Interesse für berufsspezifische Entwicklung. "]
[null,null,null,null,"E","Reflektiert und beurteilt die Qualität der eigenen Arbeit und des eigenen Lernens und kommuniziert diese."]
[null,null,null,null,"Kompetenz 6.3\nWissenstransfer",null,"Notenwert"]
[null,null,null,null,null,null,6,5.5,5,4.5,4,"< 4"]
[null,null,null,null,"6.3.1","Die/der Auszubildende transferiert ihre Wissens- und Handlungsressourcen gezielt und adäquat auf neue und weitere Arbeitskontexte.\n"]
[null,null,null,null,null,"Die/der Auszubildende"]
[null,null,null,null,"I","Prüft und aktualisiert ihr/sein Wissen. "]
[null,null,null,null,"P","Plant Anpassungen an die neue Situation."]
[null,null,null,null,"R","Führt die Massnahmen durch."]
[null,null,null,null,"E","Evaluiert die Handlung und das Verhalten unter Berücksichtigung des neuen Kontexts und kommuniziet diese."]
[null,null,null,null,"Bemerkung Kompetenz 6.1 / 6.2 / 6.3"]
[null,null,null,null,"Total Arbeitsprozess 6, Qualitätsmanagment und Berufsentwicklung",null,null,null,{"$f":"Berechnung!I78","v":"nicht vollständig"}]

{"sheet":"Beurteilung","index":9,"n_rows":48,"n_cols":8,"rows_kept":48,"cut":false,"hidden":false,"merged":[[46,6,46,7],[37,6,37,7],[38,6,38,7],[41,6,41,7],[42,6,42,7],[45,6,45,7],[2,4,9,7],[10,4,10,6],[11,4,11,6],[12,4,12,6],[16,4,16,6],[35,6,35,7],[39,6,39,7],[43,6,43,7],[47,6,47,7],[13,4,13,6],[14,4,14,6],[15,4,15,6],[18,4,24,7],[26,6,26,7],[27,6,27,7],[30,6,30,7],[33,6,33,7],[34,6,34,7],[32,4,32,7],[29,6,29,7],[31,6,31,7]]}
[null,null,null,null,"Beurteilung"]
[]
[null,null,null,null,"Die Qualifikation Lernbereich berufliche Praxis ist erfüllt, wenn alle beurteilten Handlungskompetenzen mindestens mit der ECTS-Note E beurteilt sind. Die IPRE Kriterien bilden hier eine Aussahme. \n\nMindestens 16 von 18 Handlungskompetenzen müssen bewertet sein (10%). \n\nDie Qualifikation ist Bestandteil der Promotion, geregelt in der aktuellen Promotionsordnung zur Ausbildung dipl. Fachfrau Operationstechnik HF / dipl. Fachmann Operationstechnik HF des Berufs-und Weiterbildungszentrum für Gesundheit St.Gallen (BZGS)"]
[]
[]
[]
[]
[]
[]
[]
[null,null,null,null,"Arbeitsprozess 1",null,null,{"$f":"Berechnung!I21","v":"nicht vollständig"}]
[null,null,null,null,"Arbeitsprozess 3",null,null,{"$f":"Berechnung!I33","v":"nicht vollständig"}]
[null,null,null,null,"Arbeitsprozess 4",null,null,{"$f":"Berechnung!I50","v":"nicht vollständig"}]
[null,null,null,null,"Arbeitsprozess 5",null,null,{"$f":"Berechnung!I62","v":"nicht vollständig"}]
[null,null,null,null,"Arbeitsprozess 6",null,null,{"$f":"Berechnung!I78","v":"nicht vollständig"}]
[null,null,null,null,"Durchschnittlicher Notenwert über alle Arbeitsprozesse",null,null,{"$f":"Berechnung!J80","v":"nicht vollständig"}]
[null,null,null,null,"ECTS-Notenwert über alle Arbeitsprozesse",null,null,{"$f":"Berechnung!J81","v":"nicht vollständig"}]
[]
[null,null,null,null,"Bemerkungen"]
[]
[]
[]
[]
[]
[]
[]
[null,null,null,null,"Ort "]
[null,null,null,null,"Datum"]
[]
[null,null,null,null,"Die/der Auszubildende\n(Blockschrift)"]
[null,null,null,null,"Unterschrift"]
[null,null,null,null,null,null,"(mit der Unterschrift bestätigt die/der Auszubildende die Kenntnisnahme der Qualifikation, nicht das Einverständnis)"]
[]
[null,null,null,null,"Die/der Beuteilende\n(Blockschrift)"]
[null,null,null,null,"Funktion"]
[null,null,null,null,"Unterschrift"]
[]
[null,null,null,null,"Die/der Beuteilende\n(Blockschrift)"]
[null,null,null,null,"Funktion"]
[null,null,null,null,"Unterschrift"]
[]
[null,null,null,null,"Die/der Beuteilende\n(Blockschrift)"]
[null,null,null,null,"Funktion"]
[null,null,null,null,"Unterschrift"]
[]
[null,null,null,null,"Die/der Beuteilende\n(Blockschrift)"]
[null,null,null,null,"Funktion"]
[null,null,null,null,"Unterschrift"]

{"sheet":"Berechnung","index":10,"n_rows":87,"n_cols":19,"rows_kept":87,"cut":false,"hidden":true,"merged":[]}
["Berechnung bitte nichts verändern!",null,null,null,null,null,null,null,"Passwort: HFOT1"]
[null,null,null,null,null,null,null,null,null,null,null,null,null,null,null,null,null,null,"Code Gruppenrahmen:  "]
[null,null,"Punkte","Note","ohne IPRE","ohne IPRE","Total pro AP",null,"Endnote",null,null,null,null,null,null,100000,null,null,"activesheet.groupboxes.visible = false"]
["Arbeitsprozess 1","1.1.1",0,{"$f":"VLOOKUP(C4,$O$4:$P$10,2,FALSE)","v":0},{"$f":"D4","v":0},{"$f":"IF(E4=0,\"\",E4)","v":""},null,null,null,null,null,null,null,null,0]
[null,"1.1.2",0,{"$f":"VLOOKUP(C5,$O$4:$P$10,2,FALSE)","v":0},{"$f":"D5","v":0},{"$f":"IF(E5=0,\"\",E5)","v":""},null,null,null,null,null,null,null,null,1,10000,null,null,"Code Ausdruck:"]
[null,"1.1.3",0,0,0,{"$f":"IF(E6=0,\"\",E6)","v":""},null,null,null,null,null,null,null,null,2,4,null,null,"Sub Drucken()"]
[null,"1.1.I",0,0,null,null,null,null,null,null,null,null,null,null,3,4.5,null,null,"Dim pdfName As String"]
[null,"1.1.P",0,0,null,null,null,null,null,null,null,null,null,null,4,5,null,null,"Dim pdfOpenAfterPublish As Boolean"]
[null,"1.1.R",0,0,null,null,null,null,null,null,null,null,null,null,5,5.5,null,null," "]
[null,"1.1.E",0,0,null,null,null,null,null,null,null,null,null,null,6,6,null,null,"Rem Rückfragen, ob Datei nach dem Erstellen geöffnet werden soll"]
[null,"1.2.1",0,0,0,{"$f":"IF(E11=0,\"\",E11)","v":""},null,null,null,null,null,null,null,null,null,null,null,null,"If MsgBox(\"Soll die PDF-Datei nach dem Erstellen angezeigt werden?\", vbYesNo, \"PDF anzeigen?\") = vbYes Then pdfOpenAfterPublish = True"]
[null,"1.2.I",0,0,null,null,null,null,null,null,null,null,null,null,null,null,null,null," "]
[null,"1.2.P",0,0,null,null,null,null,null,null,null,null,null,null,null,null,null,null,"pdfName = Application.GetSaveAsFilename(InitialFileName:=Environ(\"USERPROFILE\") & \"\\Desktop\\HF OT_1.Praktikumsquali\", fileFilter:=\"PDF-Dateien (*.pdf), *.pdf\")"]
[null,"1.2.R",0,0,null,null,null,null,null,null,null,null,null,null,null,null,null,null," "]
[null,"1.2.E",0,0,null,null,null,null,null,null,null,null,null,null,null,null,null,null,"If pdfName = \"Falsch\" Then Exit Sub"]
[null,"1.3.1",0,0,0,{"$f":"IF(E16=0,\"\",E16)","v":""},null,null,null,null,null,null,null,null,null,null,null,null," "]
[null,"1.3.I",0,0,null,null,null,null,null,null,null,null,null,null,null,null,null,null,"ActiveWorkbook.ExportAsFixedFormat Type:=xlTypePDF, Filename:=pdfName, _"]
[null,"1.3.P",0,0,null,null,null,null,null,null,null,null,null,null,null,null,null,null,"                                   Quality:=xlQualityStandard, IncludeDocProperties:=False, IgnorePrintAreas:=False, _"]
[null,"1.3.R",0,0,null,null,null,null,null,null,null,null,null,null,null,null,null,null,"                                   OpenAfterPublish:=IIf(pdfOpenAfterPublish, True, False)"]
[null,"1.3.E",0,0,null,null,null,null,null,null,null,null,null,null,null,null,null,null,"End Sub"]
["Total aus 1",null,null,null,null,null,{"$f":"AVERAGE(F4:F20)","v":{"$error":"#DIV/0!"}},{"$f":"ROUND(G21/0.5,0)*0.5","v":{"$error":"#DIV/0!"}},{"$f":"IF(ISERROR(H21)=TRUE,\"nicht vollständig\",IF(H21>=6.1,\"nicht erfüllt\",H21))","v":"nicht vollständig"}]
["Arbeitsprozess 3","3.1.1",0,0,0,{"$f":"IF(E22=0,\"\",E22)","v":""}]
[null,"3.1.2",0,0,0,{"$f":"IF(E23=0,\"\",E23)","v":""}]
[null,"3.1.I",0,0]
[null,"3.1.P",0,0]
[null,"3.1.R",0,0]
[null,"3.1.E",0,0]
[null,"3.2.1",0,0,0,{"$f":"IF(E28=0,\"\",E28)","v":""}]
[null,"3.2.I",0,0]
[null,"3.2.P",0,0]
[null,"3.2.R",0,0]
[null,"3.2.E",0,0]
["Total aus 3",null,null,null,null,null,{"$f":"AVERAGE(F22:F32)","v":{"$error":"#DIV/0!"}},{"$f":"ROUND(G33/0.5,0)*0.5","v":{"$error":"#DIV/0!"}},{"$f":"IF(ISERROR(H33)=TRUE,\"nicht vollständig\",IF(H33>=6.1,\"nicht erfüllt\",H33))","v":"nicht vollständig"}]
["Arbeitsprozess 4","4.1.1",0,0,0,{"$f":"IF(E34=0,\"\",E34)","v":""}]
[null,"4.1.I",0,0]
[null,"4.1.P",0,0]
[null,"4.1.R",0,0]
[null,"4.1.E",0,0]
[null,"4.2.1",0,0,0,{"$f":"IF(E39=0,\"\",E39)","v":""}]
[null,"4.2.I",0,0]
[null,"4.2.P",0,0]
[null,"4.2.R",0,0]
[null,"4.2.E",0,0]
[null,"4.3.1",0,0,0,{"$f":"IF(E44=0,\"\",E44)","v":""}]
[null,"4.3.2",0,0,0,{"$f":"IF(E45=0,\"\",E45)","v":""}]
[null,"4.3.I",0,0]
[null,"4.3.P",0,0]
[null,"4.3.R",0,0]
[null,"4.3.E",0,0]
["Total aus 4",null,null,null,null,null,{"$f":"AVERAGE(F34:F49)","v":{"$error":"#DIV/0!"}},{"$f":"ROUND(G50/0.5,0)*0.5","v":{"$error":"#DIV/0!"}},{"$f":"IF(ISERROR(H50)=TRUE,\"nicht vollständig\",IF(H50>=6.1,\"nicht erfüllt\",H50))","v":"nicht vollständig"}]
["Arbeitsprozess 5","5.1.1",0,0,0,{"$f":"IF(E51=0,\"\",E51)","v":""}]
[null,"5.1.I",0,0]
[null,"5.1.P",0,0]
[null,"5.1.R",0,0]
[null,"5.1.E",0,{"$f":"VLOOKUP(C55,$O$4:$P$10,2,FALSE)","v":0}]
[null,"5.2.1",0,0,0,{"$f":"IF(E56=0,\"\",E56)","v":""}]
[null,"5.2.2",0,0,0,{"$f":"IF(E57=0,\"\",E57)","v":""}]
[null,"5.2.I",0,0]
[null,"5.2.P",0,0]
[null,"5.2.R",0,0]
[null,"5.2.E",0,0]
["Total aus 5",null,null,null,null,null,{"$f":"AVERAGE(F51:F61)","v":{"$error":"#DIV/0!"}},{"$f":"ROUND(G62/0.5,0)*0.5","v":{"$error":"#DIV/0!"}},{"$f":"IF(ISERROR(H62)=TRUE,\"nicht vollständig\",IF(H62>=6.1,\"nicht erfüllt\",H62))","v":"nicht vollständig"}]
["Arbeitsprozess 6","6.1.1",0,0,0,{"$f":"IF(E63=0,\"\",E63)","v":""}]
[null,"6.1.I",0,0]
[null,"6.1.P",0,0]
[null,"6.1.R",0,0]
[null,"6.1.E",0,0]
[null,"6.2.1",0,0,0,{"$f":"IF(E68=0,\"\",E68)","v":""}]
[null,"6.2.I",0,0]
[null,"6.2.P",0,0]
[null,"6.2.R",0,0]
[null,"6.2.E",0,0]
[null,"6.3.1",0,0,{"$f":"D73","v":0},{"$f":"IF(E73=0,\"\",E73)","v":""}]
[null,"6.3.I",0,0]
[null,"6.3.P",0,0]
[null,"6.3.R",0,0]
[null,"6.3.E",0,0]
["Total aus 6",null,null,null,null,null,{"$f":"AVERAGE(IF(ISNUMBER(F63:F77),F63:F77))","v":{"$error":"#DIV/0!"}},{"$f":"ROUND(G78/0.5,0)*0.5","v":{"$error":"#DIV/0!"}},{"$f":"IF(ISERROR(H78)=TRUE,\"nicht vollständig\",IF(H78>=6.1,\"nicht erfüllt\",H78))","v":"nicht vollständig"}]
[]
["Gesammttotal",null,null,null,null,{"$f":"COUNT(F4:F77)","v":0},{"$f":"IF(F80<=15,\"nicht vollständig\",AVERAGE(E4:E78))","v":"nicht vollständig"},{"$f":"IF(G80=\"nicht vollständig\",\"nicht vollständig\",IF(G80>=6.00000001,\"nicht erfüllt\",G80))","v":"nicht vollständig"},{"$f":"IF(H80=\"nicht vollständig\",\"nicht vollständig\",IF(H80=\"nicht erfüllt\",\"nicht erfüllt\",ROUND(H80/0.5,0)*0.5))","v":"nicht vollständig"},{"$f":"IF(I80=\"nicht vollständig\",\"nicht vollständig\",IF(I80=\"nicht erfüllt\",\"nicht erfüllt\",I80))","v":"nicht vollständig"}]
[null,null,null,null,null,null,null,null,null,{"$f":"IF(J80=\"nicht erfüllt\",\"F\",IF(J80=4,\"E\",IF(J80=4.5,\"D\",IF(J80=5,\"C\",IF(J80=5.5,\"B\",IF(J80=6,\"A\",J80))))))","v":"nicht vollständig"}]
[null,null,null,null,null,null,null,null,null,null,null,null,"A","hervorragend",6,"Kompetenzen erreicht"]
[null,null,null,null,null,null,null,null,null,null,null,null,"B","sehr gut",5.5,"Kompetenzen erreicht"]
[null,null,null,null,null,null,null,null,null,null,null,null,"C","gut",5,"Kompetenzen erreicht"]
[null,null,null,null,null,null,null,null,null,null,null,null,"D","befriedigend",4.5,"Kompetenzen erreicht"]
[null,null,null,null,null,null,null,null,null,null,null,null,"E","genügend (ausreichend)",4,"Kompetenzen erreicht"]
[null,null,null,null,null,null,null,null,null,null,null,null,"F","nicht bestanden","< 4","Kompetenzen nicht erreicht"]